bitfinex-derivatives/quotes_SOLF0:USTF0_20250808
["timestamp","ask_amount","ask_price","bid_price","bid_amount"]
[1754682155852,3.15,178.26,178.19,3.99205534]
[1754682156557,3.15,178.26,178.21,3.99205534]
[1754682157856,3.07,178.22,178.18,3.99205534]
[1754682158055,3.99205534,178.21,178.13,3.99205534]
[1754682158255,3.07,178.27,178.19,3.99205534]
[1754682158461,3.07,178.26,178.19,3.99205534]
[1754682159455,3.07,178.26,178.16,0.03]
[1754682159456,5.6106,178.21,178.17,9.60345534]
[1754682159657,3.07,178.19,178.17,4.02205534]
[1754682160460,5.6101,178.22,178.18,0.03]
[1754682160656,3.99205534,178.29,178.2,3.99205534]
[1754682160959,5.6085,178.28,178.24,3.99205534]
[1754682161156,3.07,178.27,178.24,4.02205534]
[1754682161354,3.99205534,178.33,178.25,5.6091]
[1754682161561,3.07,178.29,178.26,3.99205534]
[1754682161757,3.99205534,178.31,178.24,3.99205534]
[1754682161957,3.07,178.3,178.26,3.99205534]
[1754682162165,3.07,178.27,178.26,3.99205534]
[1754682162568,3.07,178.27,178.22,3.99205534]
[1754682162753,3.07,178.27,178.2,3.99205534]
[1754682163260,3.07,178.22,178.2,3.99205534]
[1754682163463,5.61,178.23,178.2,3.99205534]
[1754682163464,3.07,178.21,178.2,3.99205534]
[1754682163659,3.07,178.21,178.2,9.60275534]
[1754682163862,3.07,178.22,178.2,4.02205534]
[1754682164763,3.07,178.26,178.18,0.03]
[1754682165066,3.99205534,178.27,178.18,3.99205534]
[1754682165067,3.07,178.19,178.18,3.99205534]
[1754682165266,3.99205534,178.27,178.18,4.02205534]
[1754682165463,3.07,178.21,178.18,4.02205534]
[1754682165961,3.07,178.21,178.2,3.99205534]
[1754682167067,5.6104,178.21,178.18,3.99205534]
[1754682167264,3.07,178.2,178.18,4.02205534]
[1754682167560,5.6118,178.17,178.13,5.6127]
[1754682167768,3.07,178.18,178.14,3.99205534]
[1754682167959,3.07,178.18,178.12,138.89]
[1754682168265,3.07,178.18,178.13,3.99205534]
[1754682168466,5.6118,178.17,178.13,9.60475534]
[1754682168667,3.99205534,178.22,178.13,9.63475534]
[1754682168860,3.07,178.15,178.13,9.63475534]
[1754682169456,3.07,178.15,178.13,9.60475534]
[1754682169664,3.07,178.15,178.14,0.03]
[1754682169862,3.07,178.15,178.13,9.60475534]
[1754682170160,3.07,178.19,178.11,3.99205534]
[1754682170466,3.07,178.19,178.11,142.87205534]
[1754682170667,3.07,178.19,178.11,148.51535534]
[1754682170861,3.07,178.19,178.11,142.90205534]
[1754682171366,3.07,178.19,178.12,5.613]
[1754682171662,3.07,178.19,178.12,3.99205534]
[1754682171863,5.6122,178.16,178.12,9.60505534]
[1754682172066,3.07,178.19,178.12,3.99205534]
[1754682172264,3.07,178.19,178.13,0.03]
[1754682172658,5.6117,178.17,178.13,0.03]
[1754682172964,3.07,178.15,178.13,0.03]
[1754682173158,3.07,178.15,178.13,5.6428]
[1754682173763,3.07,178.23,178.16,0.03]
[1754682173963,3.07,178.23,178.19,3.99205534]
[1754682174169,3.07,178.3,178.21,3.99205534]
[1754682174364,3.07,178.29,178.22,3.99205534]
[1754682174564,3.07,178.29,178.2,3.99205534]
[1754682174764,5.6093,178.25,178.22,3.99205534]
[1754682174970,3.07,178.31,178.24,3.99205534]
[1754682175171,5.6085,178.28,178.24,9.60145534]
[1754682175673,3.07,178.25,178.24,9.60145534]
[1754682175873,3.07,178.25,178.12,0.03]
[1754682176079,3.07,178.25,178.21,3.99205534]
[1754682176669,3.07,178.23,178.21,3.99205534]
[1754682177277,3.07,178.29,178.14,0.03]
[1754682177469,3.07,178.29,178.21,3.99205534]
[1754682178073,7.06205534,178.29,178.21,3.99205534]
[1754682178275,3.07,178.28,178.21,3.99205534]
[1754682178774,5.6096,178.24,178.21,4.02205534]
[1754682178964,8.6796,178.24,178.21,4.02205534]
[1754682179278,8.68,178.23,178.21,3.99205534]
[1754682179470,3.07,178.22,178.21,3.99205534]
[1754682179974,3.07,178.22,178.21,9.60245534]
[1754682180175,3.07,178.24,178.21,4.02205534]
[1754682180375,3.07,178.24,178.23,3.99205534]
[1754682180771,8.6795,178.24,178.23,3.99205534]
[1754682180973,3.07,178.24,178.21,3.99205534]
[1754682181168,9.4605787,178.3,178.21,3.99205534]
[1754682181372,9.4605787,178.3,178.21,4.02205534]
[1754682181668,3.07,178.22,178.21,3.99205534]
[1754682182774,3.07,178.29,178.21,3.99205534]
[1754682182974,9.4605787,178.3,178.21,3.99205534]
[1754682183275,7.06205534,178.29,178.21,3.99205534]
[1754682183486,5.61,178.23,178.21,3.99205534]
[1754682183676,3.07,178.22,178.21,3.99205534]
[1754682185277,8.6801,178.22,178.21,3.99205534]
[1754682185578,3.07,178.25,178.17,3.99205534]
[1754682185776,5.6112,178.19,178.17,3.99205534]
[1754682185967,3.07,178.18,178.17,3.99205534]
[1754682186678,3.22,178.24,178.17,9.63365534]
[1754682187077,5.6107,178.21,178.17,9.63365534]
[1754682187278,3.22,178.2,178.17,9.63365534]
[1754682187481,3.22,178.24,178.17,3.99205534]
[1754682188175,3.22,178.2,178.19,3.99205534]
[1754682191384,3.22,178.2,178.16,3.99205534]
[1754682191583,3.22,178.2,178.14,3.99205534]
[1754682193176,5.6115,178.18,178.14,3.99205534]
[1754682193382,5.6115,178.18,178.14,4.02205534]
[1754682193583,9.4605787,178.21,178.14,3.99205534]
[1754682193584,3.22,178.17,178.14,3.99205534]
[1754682193786,3.22,178.17,178.13,3.99205534]
[1754682193978,3.22,178.17,178.1,3.99205534]
[1754682194286,3.22,178.17,178.08,3.99205534]
[1754682194287,3.22,178.16,178.08,3.99205534]
[1754682194583,3.22,178.12,178.09,5.614]
[1754682194790,3.22,178.12,178.09,9.60605534]
[1754682195090,3.22,178.13,178.1,5.6137]
[1754682195286,3.22,178.12,178.1,5.6137]
[1754682196383,5.6127,178.14,178.1,5.6137]
[1754682196586,3.22,178.11,178.1,5.6137]
[1754682196786,3.22,178.11,178.09,9.60615534]
[1754682196986,5.6131,178.13,178.09,4.02205534]
[1754682197186,3.22,178.11,178.09,4.02205534]
[1754682198191,3.22,178.11,178.1,5.6138]
[1754682198391,3.99205534,178.15,178.06,138.92]
[1754682198591,3.22,178.14,178.07,3.99205534]
[1754682198787,3.22,178.14,178.08,5.6143]
[1754682198988,3.22,178.11,178.07,3.99205534]
[1754682199392,3.22,178.11,178.08,5.6145]
[1754682199587,3.22,178.11,178.07,3.99205534]
[1754682200196,5.6139,178.1,178.07,3.99205534]
[1754682200393,3.22,178.09,178.07,3.99205534]
[1754682200597,5.6139,178.1,178.07,3.99205534]
[1754682200797,3.22,178.08,178.07,3.99205534]
[1754682201297,3.22,178.08,178.07,9.60685534]
[1754682201493,3.22,178.08,178.07,3.99205534]
[1754682204092,5.6142,178.09,178.07,3.99205534]
[1754682204588,5.6145,178.08,178.07,3.99205534]
[1754682204896,3.22,178.08,178.07,3.99205534]
[1754682206192,3.22,178.08,178.06,138.92]
[1754682206394,3.22,178.08,178.03,3.99205534]
[1754682206702,3.22,178.05,178.03,142.69205534]
[1754682207297,3.22,178.04,178.03,142.69205534]
[1754682207892,8.8358,178.04,178.03,138.7]
[1754682210501,3.22,178.04,178.03,138.7]
[1754682211598,8.8358,178.04,178.03,138.7]
[1754682212495,3.22,178.04,178.03,138.7]
[1754682213391,8.8358,178.04,178.03,138.7]
[1754682214798,8.8358,178.04,177.98,0.03]
[1754682214799,3.99205534,178.07,177.98,3.99205534]
[1754682214997,3.22,178.06,177.98,142.55205534]
[1754682215909,5.6167,178.01,177.98,148.16955534]
[1754682216201,3.2,178.0,177.98,142.55205534]
[1754682216406,3.2,178.06,177.98,142.55205534]
[1754682217006,5.6165,178.02,177.99,5.6173]
[1754682217209,3.2,178.01,177.99,5.6573]
[1754682217406,5.6165,178.02,177.99,5.6573]
[1754682217608,3.2,178.0,177.98,148.16955534]
[1754682217908,3.2,178.0,177.98,148.20955534]
[1754682219811,3.2,178.0,177.98,142.59205534]
[1754682220008,3.2,178.0,177.98,138.6]
[1754682220211,3.2,178.0,177.99,3.99205534]
[1754682221711,3.2,178.0,177.98,138.56]
[1754682221911,3.2,178.0,177.98,142.55205534]
[1754682222515,8.8171,178.0,177.98,142.55205534]
[1754682222708,3.2,177.99,177.98,142.55205534]
[1754682222909,3.2,177.99,177.98,3.99205534]
[1754682223215,3.2,177.99,177.98,142.39205534]
[1754682223414,3.2,178.09,177.98,142.39205534]
[1754682223610,3.2,178.07,178.04,3.99205534]
[1754682224116,5.6153,178.06,178.04,3.99205534]
[1754682224306,3.2,178.05,178.04,3.99205534]
[1754682225918,3.2,178.11,178.04,3.99205534]
[1754682226421,3.2,178.05,178.04,3.99205534]
[1754682227311,3.2,178.05,178.02,144.0163]
[1754682227312,3.2,178.11,178.02,138.36]
[1754682227513,3.2,178.09,178.02,138.36]
[1754682227915,5.616,178.04,178.02,138.36]
[1754682228222,3.2,178.03,178.02,138.36]
[1754682230122,3.99205534,178.12,178.02,143.9764]
[1754682230315,3.2,178.11,178.04,3.99205534]
[1754682230520,3.2,178.05,178.04,3.99205534]
[1754682231112,8.8154,178.05,178.04,3.99205534]
[1754682232626,5.6161,178.03,178.02,142.35205534]
[1754682232922,8.8161,178.03,178.02,142.43205534]
[1754682233726,3.2,178.03,178.02,142.43205534]
[1754682236119,3.2,178.03,178.02,3.99205534]
[1754682236323,3.2,178.03,178.02,142.33205534]
[1754682236719,5.6157,178.05,178.02,142.37205534]
[1754682236924,3.2,178.04,178.03,0.04]
[1754682237125,3.2,178.03,178.02,142.33205534]
[1754682240527,3.2,178.03,177.99,3.99205534]
[1754682240723,3.2,178.03,177.99,138.3]
[1754682241330,9.48288402,178.03,177.99,138.3]
[1754682241630,8.817,178.0,177.99,138.3]
[1754682242026,3.2,178.0,177.99,138.3]
[1754682242331,3.2,178.0,177.99,142.29205534]
[1754682244122,8.817,178.0,177.99,138.3]
[1754682244832,3.2,177.99,177.97,142.33205534]
[1754682245036,6.28288402,177.99,177.86,235.0]
[1754682245235,6.28288402,177.99,177.91,3.99205534]
[1754682245236,3.2,177.95,177.91,3.99205534]
[1754682245436,3.2,177.94,177.92,138.32]
[1754682245628,3.2,177.93,177.92,138.32]
[1754682247140,9.4605787,177.96,177.92,138.32]
[1754682247141,6.28288402,177.95,177.93,0.04]
[1754682247433,9.48288402,177.96,177.94,4.03205534]
[1754682247634,9.48288402,177.96,177.95,138.38]
[1754682247837,3.2,177.96,177.95,138.38]
[1754682248031,9.48352292,177.96,177.95,138.38]
[1754682248337,9.48264127,177.96,177.95,138.38]
[1754682251938,3.2,177.96,177.95,138.38]
[1754682252638,3.2,177.96,177.92,147.91135534]
[1754682252833,3.2,177.93,177.92,147.91135534]
[1754682253235,3.2,177.93,177.92,142.29205534]
[1754682253930,3.2,177.93,177.92,147.91155534]
[1754682254535,3.2,177.93,177.92,142.29205534]
[1754682254833,9.48039103,177.93,177.92,138.3]
[1754682255033,15.09959103,177.93,177.92,138.3]
[1754682255335,9.48039103,177.93,177.92,138.3]
[1754682256133,9.48039103,177.93,177.92,143.9195]
[1754682256335,5.60384376,177.93,177.92,147.91155534]
[1754682257534,5.60295418,177.93,177.92,147.91155534]
[1754682257737,5.60295418,177.93,177.92,142.29205534]
[1754682259838,11.22215418,177.93,177.92,142.29205534]
[1754682260238,5.60295418,177.93,177.92,142.29205534]
[1754682260942,5.60177671,177.93,177.92,142.29205534]
[1754682264444,5.60177671,177.93,177.92,147.91155534]
[1754682264646,2.40177671,177.93,177.92,147.95155534]
[1754682264844,5.60177671,177.93,177.92,147.91155534]
[1754682265445,5.60177671,177.93,177.92,142.29205534]
[1754682267149,11.22097671,177.93,177.92,142.29205534]
[1754682267353,5.60177671,177.93,177.92,142.29205534]
[1754682267945,5.60177671,177.93,177.92,138.3]
[1754682268350,11.22097671,177.93,177.92,138.3]
[1754682270053,3.2,177.92,177.9,3.99205534]
[1754682270249,5.60177671,177.91,177.9,3.99205534]
[1754682270554,3.2,177.9,177.89,138.16]
[1754682270853,5.60177671,177.9,177.89,138.16]
[1754682272762,5.60177671,177.9,177.89,143.7805]
[1754682273261,5.60177671,177.9,177.89,143.8205]
[1754682274254,5.60177671,177.9,177.89,143.7805]
[1754682274564,5.60177671,177.9,177.89,138.16]
[1754682277461,11.22197671,177.9,177.89,138.16]
[1754682278459,5.60177671,177.9,177.89,138.16]
[1754682279368,2.40177671,177.9,177.89,142.19205534]
[1754682279856,2.40177671,177.9,177.89,147.81255534]
[1754682282963,5.54177671,177.9,177.89,147.81255534]
[1754682284363,11.82216774,177.9,177.89,147.81255534]
[1754682285260,11.82216774,177.9,177.89,145.66528854]
[1754682285759,8.68216774,177.9,177.89,145.66528854]
[1754682285955,11.82216774,177.9,177.89,145.70528854]
[1754682286160,9.42039103,177.9,177.89,145.70528854]
[1754682286465,3.14,177.9,177.89,145.70528854]
[1754682287264,6.28039103,177.9,177.89,145.70528854]
[1754682287470,3.14,177.92,177.91,5.6599]
[1754682287668,3.14,177.92,177.91,147.81195534]
[1754682288462,9.4605787,177.92,177.9,138.16]
[1754682288667,12.57904338,177.96,177.87,3.99205534]
[1754682288668,5.6205,177.89,177.87,3.99205534]
[1754682288968,3.14,177.9,177.87,138.16]
[1754682288969,3.14,177.88,177.87,138.16]
[1754682290264,5.66422344,177.88,177.87,136.75503876]
[1754682290971,11.28502344,177.88,177.87,136.75503876]
[1754682291365,5.66422344,177.88,177.87,139.74503876]
[1754682291567,5.66422344,177.88,177.87,143.7370941]
[1754682292066,2.52422344,177.88,177.87,143.7370941]
[1754682293173,2.52422344,177.88,177.87,149.3581941]
[1754682293472,3.14,177.89,177.88,2.99]
[1754682293672,3.14,177.89,177.88,145.14205534]
[1754682294067,3.14,177.89,177.88,142.15205534]
[1754682294469,3.14,177.9,177.89,2.99]
[1754682294669,12.59269442,177.91,177.9,2.99]
[1754682294969,12.59269442,177.91,177.9,6.98205534]
[1754682297473,12.59269442,177.91,177.9,3.99205534]
[1754682299674,12.59269442,177.91,177.88,143.7806]
[1754682299873,5.6196,177.92,177.9,3.99205534]
[1754682300077,5.6196,177.92,177.91,138.16]
[1754682300280,8.7596,177.92,177.91,138.16]
[1754682300576,11.21837008,177.92,177.91,136.0527332]
[1754682301081,3.14,177.89,177.88,142.13205534]
[1754682301270,5.59877008,177.89,177.88,142.13205534]
[1754682301477,2.45877008,177.89,177.88,145.12205534]
[1754682301676,5.59877008,177.89,177.88,145.12205534]
[1754682302179,5.59877008,177.89,177.88,150.74285534]
[1754682303475,2.45877008,177.89,177.88,150.74285534]
[1754682304684,9.46674982,177.91,177.9,5.6202]
[1754682304879,3.14,177.93,177.91,2.99]
[1754682305184,3.14,177.93,177.92,145.12205534]
[1754682306280,3.14,177.93,177.92,150.74155534]
[1754682306583,3.01,177.95,177.92,142.13205534]
[1754682306981,3.01,177.93,177.92,142.13205534]
[1754682307982,8.6292,177.93,177.92,142.13205534]
[1754682308284,3.01,177.93,177.9,138.14]
[1754682308582,3.01,177.93,177.89,138.14]
[1754682308583,5.6202,177.9,177.89,138.14]
[1754682308883,8.6302,177.9,177.89,138.14]
[1754682311381,3.01,177.9,177.89,143.7605]
[1754682311583,12.57904338,177.95,177.9,3.04]
[1754682311790,12.57904338,177.98,177.95,3.04]
[1754682311989,12.57904338,177.98,177.97,5.618]
[1754682312189,12.57904338,177.99,177.94,138.14]
[1754682312485,12.57904338,177.99,177.96,3.99205534]
[1754682312783,12.57904338,177.98,177.96,3.99205534]
[1754682312982,3.01,177.97,177.96,4.0308509]
[1754682313586,3.01,177.97,177.96,0.03879556]
[1754682313786,8.628,177.97,177.96,0.03879556]
[1754682313987,3.01,177.97,177.93,3.99205534]
[1754682314188,5.6188,177.95,177.93,3.99205534]
[1754682314388,3.01,177.97,177.92,138.12]
[1754682314587,15.58904338,177.97,177.92,138.12]
[1754682314796,3.01,177.96,177.92,138.12]
[1754682315186,8.6292,177.93,177.92,138.12]
[1754682317193,3.01,177.93,177.92,138.12]
[1754682318085,8.6294,177.93,177.91,3.99205534]
[1754682318290,3.01,177.95,177.85,0.31]
[1754682318489,3.01,177.93,177.86,142.11205534]
[1754682318690,3.01,177.87,177.86,142.11205534]
[1754682319287,0.04280832,177.91,177.86,147.73205534]
[1754682319494,6.30765499,177.88,177.86,138.12]
[1754682319699,3.05280832,177.91,177.86,138.12]
[1754682319893,3.05280832,177.91,177.89,0.31]
[1754682320093,3.05280832,177.91,177.9,138.43]
[1754682320284,3.05280832,177.91,177.9,144.0502]
[1754682320782,3.05280832,177.91,177.9,148.04225534]
[1754682321184,3.05280832,177.91,177.9,147.73225534]
[1754682321691,3.05280832,177.91,177.9,3.99205534]
[1754682321994,5.6205,177.89,177.88,138.12]
[1754682322198,3.01,177.89,177.84,3.99205534]
[1754682322395,3.01,177.89,177.8,612.62]
[1754682322396,3.01,177.89,177.82,3.99205534]
[1754682322699,3.01,177.84,177.83,138.12]
[1754682323492,0.04205883,177.85,177.83,138.12]
[1754682323689,3.01,177.88,177.84,4.30205534]
[1754682323893,3.01,177.88,177.87,3.99205534]
[1754682324090,3.01,177.88,177.87,142.44205534]
[1754682324290,5.62,177.91,177.87,148.06295534]
[1754682324491,3.01,177.9,177.89,3.99205534]
[1754682329500,9.45468466,177.9,177.89,4.30205534]
[1754682329897,3.01,177.89,177.87,143.7608]
[1754682330100,3.01,177.89,177.88,3.99205534]
[1754682330298,9.45468466,177.9,177.88,4.30205534]
[1754682330492,3.01,177.89,177.88,3.99205534]
[1754682330694,12.46468466,177.89,177.88,3.99205534]
[1754682330895,3.01,177.88,177.86,142.13205534]
[1754682331198,12.46584873,177.87,177.86,142.13205534]
[1754682331991,14.88197644,177.87,177.86,140.02450531]
[1754682332303,3.01,177.85,177.84,3.99205534]
[1754682332604,3.01,177.84,177.8,3.99205534]
[1754682332795,5.42612771,177.83,177.8,3.99205534]
[1754682333102,9.45509019,177.84,177.8,3.99205534]
[1754682333292,3.01,177.83,177.8,3.99205534]
[1754682333898,5.6225,177.83,177.8,3.99205534]
[1754682334103,3.01,177.81,177.8,3.99205534]
[1754682334903,7.05818911,177.81,177.8,3.99205534]
[1754682335908,4.04818911,177.81,177.8,4.30205534]
[1754682336201,3.06,177.85,177.8,3.99205534]
[1754682336405,9.45509019,177.87,177.84,3.99205534]
[1754682336604,3.06,177.86,177.84,3.99205534]
[1754682336800,3.06,177.85,177.84,3.99205534]
[1754682339201,12.51509019,177.87,177.84,4.30205534]
[1754682339403,12.51509019,177.87,177.86,3.99205534]
[1754682339606,12.51509019,177.89,177.86,4.30205534]
[1754682339807,12.51509019,177.89,177.88,3.99205534]
[1754682341008,3.06,177.88,177.83,3.99205534]
[1754682341203,9.44129798,177.86,177.83,3.99205534]
[1754682341412,3.06,177.84,177.83,3.99205534]
[1754682342114,5.58653225,177.84,177.83,2.58685792]
[1754682342319,2.52653225,177.84,177.83,2.89685792]
[1754682343123,2.52653225,177.84,177.83,8.51925792]
[1754682343311,3.06,177.86,177.83,2.58685792]
[1754682343516,3.06,177.86,177.85,3.99205534]
[1754682343715,5.6209,177.88,177.85,138.28]
[1754682343716,3.06,177.88,177.85,138.28]
[1754682343918,3.06,177.88,177.86,0.31]
[1754682344215,3.06,177.88,177.86,5.9311]
[1754682344415,12.50129798,177.89,177.87,0.31]
[1754682344816,12.50129798,177.89,177.88,3.99205534]
[1754682345929,3.06,177.89,177.88,3.99205534]
[1754682346519,12.50129798,177.89,177.88,3.99205534]
[1754682346925,3.06,177.89,177.88,3.99205534]
[1754682347127,3.06,177.89,177.88,4.30205534]
[1754682347421,12.50129798,177.92,177.89,0.31]
[1754682347619,3.06,177.91,177.89,138.57]
[1754682347824,3.06,177.91,177.9,3.99205534]
[1754682348223,3.96172898,177.91,177.9,4.30205534]
[1754682348421,3.96172898,177.91,177.9,9.61225534]
[1754682348422,7.02172898,177.91,177.9,9.61225534]
[1754682350317,3.96172898,177.91,177.9,9.92225534]
[1754682350524,9.4829941,177.92,177.91,5.9299]
[1754682350525,0.04169612,177.92,177.91,5.9299]
[1754682351428,9.44129798,177.95,177.93,4.30205534]
[1754682351636,3.06,177.97,177.94,138.22]
[1754682351931,12.57904338,178.0,177.96,3.99205534]
[1754682352128,5.6176,177.99,177.96,3.99205534]
[1754682352320,8.6776,177.99,177.96,3.99205534]
[1754682352526,3.06,177.98,177.96,3.99205534]
[1754682352829,3.06,177.98,177.96,4.0284642]
[1754682353032,8.6779,177.98,177.96,4.0284642]
[1754682353230,3.06,177.97,177.96,4.0284642]
[1754682353531,3.06,177.96,177.83,0.31]
[1754682353724,3.06,177.92,177.86,3.99205534]
[1754682354128,12.57794914,177.93,177.86,3.99205534]
[1754682354319,3.06,177.9,177.86,3.99205534]
[1754682354527,15.43692746,177.99,177.84,144.0418]
[1754682354528,3.06,177.93,177.88,3.99205534]
[1754682354722,3.06,177.95,177.9,3.99205534]
[1754682355028,15.63794914,177.95,177.88,3.99205534]
[1754682355227,5.62,177.91,177.88,3.99205534]
[1754682355427,3.06,177.9,177.88,3.99205534]
[1754682356232,3.06,177.9,177.88,4.30205534]
[1754682356424,12.57794914,177.97,177.88,3.99205534]
[1754682356623,12.57794914,177.97,177.96,3.99205534]
[1754682356932,3.06,178.01,177.96,9.61005534]
[1754682357123,3.06,178.02,178.0,3.99205534]
[1754682357322,3.06,178.02,178.01,3.99205534]
[1754682358426,5.6151,178.06,178.01,3.99205534]
[1754682358627,5.6151,178.06,178.01,3.06]
[1754682358829,5.6151,178.06,178.02,6.47482304]
[1754682359532,12.57794914,178.09,178.04,9.53482304]
[1754682359734,12.57794914,178.1,178.04,3.06]
[1754682359929,12.57794914,178.1,178.06,6.47482304]
[1754682360233,0.04119651,178.09,178.08,6.47482304]
[1754682360425,3.10119651,178.09,178.08,9.53482304]
[1754682360625,3.06,178.09,178.08,6.47482304]
[1754682361433,3.06,178.12,178.08,6.47482304]
[1754682361626,6.47482304,178.19,178.08,6.47482304]
[1754682361627,12.57794914,178.15,178.08,6.47482304]
[1754682361828,12.57794914,178.17,178.12,6.47482304]
[1754682362032,3.06,178.16,178.14,6.47482304]
[1754682362230,5.6111,178.19,178.14,6.47482304]
[1754682362432,3.06,178.22,178.18,6.47482304]
[1754682362630,3.06,178.21,178.2,6.47482304]
[1754682362831,5.6098,178.23,178.2,6.47482304]
[1754682363031,3.06,178.24,178.22,6.47482304]
[1754682363235,3.06,178.29,178.23,9.53482304]
[1754682363441,3.06,178.29,178.24,6.47482304]
[1754682363834,3.06,178.29,178.19,142.64]
[1754682364044,3.06,178.27,178.18,6.47482304]
[1754682364433,3.06,178.17,178.14,6.47482304]
[1754682364633,3.06,178.16,178.14,6.47482304]
[1754682364840,6.47482304,178.23,178.13,142.7]
[1754682365035,6.47482304,178.23,178.11,3.06]
[1754682365236,3.06,178.22,178.13,6.47482304]
[1754682365431,3.06,178.22,178.16,0.03655344]
[1754682365632,155.29794914,178.3,178.16,0.03655344]
[1754682365633,8.6717,178.17,178.16,0.03655344]
[1754682366033,5.6126,178.14,178.11,6.47482304]
[1754682366235,12.57794914,178.29,178.11,6.47482304]
[1754682366538,3.0,178.22,178.13,6.47482304]
[1754682367130,11.2129,178.34,178.11,142.84]
[1754682367131,3.0,178.21,178.19,9.74482304]
[1754682367333,3.0,178.3,178.21,6.47482304]
[1754682367534,3.0,178.3,178.23,6.47482304]
[1754682368139,5.6095,178.24,178.23,6.47482304]
[1754682368633,3.0,178.27,178.22,6.47482304]
[1754682368836,3.0,178.27,178.16,3.27]
[1754682369030,3.0,178.25,178.16,9.74482304]
[1754682369435,6.47482304,178.26,178.17,3.27]
[1754682369436,5.6112,178.19,178.17,3.27]
[1754682369632,3.0,178.25,178.16,6.47482304]
[1754682370034,3.0,178.23,178.14,6.47482304]
[1754682370438,3.0,178.23,178.16,6.47482304]
[1754682370741,3.0,178.32,178.22,6.47482304]
[1754682370943,3.0,178.32,178.21,6.47482304]
[1754682371141,6.47482304,178.31,178.21,6.47482304]
[1754682371443,3.0,178.3,178.21,6.47482304]
[1754682371940,3.0,178.3,178.22,3.27]
[1754682372136,11.2121,178.35,178.11,3.27]
[1754682372137,3.0,178.27,178.11,3.27]
[1754682372338,5.6118,178.17,178.16,6.47482304]
[1754682372544,3.0,178.16,178.14,9.74482304]
[1754682372738,3.0,178.19,178.15,3.27]
[1754682373040,5.6117,178.17,178.16,3.27]
[1754682373743,5.612,178.16,178.13,3.27]
[1754682373945,3.0,178.17,178.14,6.47482304]
[1754682374139,3.0,178.22,178.12,6.47482304]
[1754682374537,3.0,178.22,178.14,6.47482304]
[1754682374745,5.6121,178.16,178.12,3.27]
[1754682375044,3.0,178.21,178.13,9.74482304]
[1754682375342,5.6126,178.14,178.13,6.47482304]
[1754682375542,3.0,178.14,178.11,3.27]
[1754682375838,6.47482304,178.31,178.07,612.56]
[1754682375839,8.6135,178.12,178.1,6.47482304]
[1754682376139,5.6135,178.12,178.1,9.74482304]
[1754682376738,5.6136,178.11,178.1,9.74482304]
[1754682377136,3.0,178.14,178.08,6.47482304]
[1754682377339,3.0,178.14,178.07,377.56]
[1754682377543,3.0,178.08,178.06,6.47482304]
[1754682377744,3.0,178.07,178.04,153.04482304]
[1754682378045,3.0,178.07,178.05,3.27]
[1754682378737,8.6151,178.07,178.05,3.27]
[1754682379138,3.0,178.07,178.05,3.27]
[1754682379638,8.6151,178.07,178.05,3.27]
[1754682379841,6.47482304,178.13,178.04,143.16]
[1754682380150,3.0,178.12,178.03,143.14]
[1754682380346,5.6157,178.05,178.03,143.14]
[1754682380540,3.0,178.05,178.03,143.14]
[1754682381738,8.6157,178.05,178.02,143.12]
[1754682381944,8.6157,178.05,178.02,146.39]
[1754682382145,5.6158,178.04,178.02,146.39]
[1754682382844,3.0,178.09,178.02,152.86482304]
[1754682383043,3.0,178.09,178.02,143.12]
[1754682383343,5.6161,178.03,178.02,143.12]
[1754682383542,8.6161,178.03,178.02,143.12]
[1754682384745,3.0,178.07,177.97,386.88482304]
[1754682384937,3.0,178.07,177.98,143.3]